bitfinex/quotes_SOLUSD_20240818
["timestamp","ask_amount","ask_price","bid_price","bid_amount"]
[1724019862826,6.862,145.73,145.64,45.0]
[1724019863141,22.6927,145.72,145.64,45.0]
[1724019864033,22.6927,145.72,145.63,45.0]
[1724019864213,22.6927,145.72,145.64,20.0]
[1724019864416,22.6927,145.72,145.65,45.0]
[1724019867355,22.6927,145.72,145.65,67.12]
[1724019868828,22.6927,145.72,145.67,22.12]
[1724019869038,22.6927,145.72,145.68,65.0]
[1724019869532,22.6927,145.72,145.68,20.0]
[1724019869740,22.6927,145.72,145.66,20.0]
[1724019869919,22.6927,145.72,145.67,45.0]
[1724019870248,22.6927,145.72,145.68,20.0]
[1724019872325,22.6927,145.72,145.69,45.0]
[1724019872533,22.6927,145.72,145.69,67.12]
[1724019872731,22.6927,145.72,145.7,1.37245977]
[1724019873848,22.6927,145.72,145.69,45.0]
[1724019874025,22.6927,145.72,145.68,20.0]
[1724019874217,22.6927,145.72,145.66,20.0]
[1724019875815,22.6927,145.72,145.67,45.0]
[1724019876020,22.6927,145.72,145.68,20.0]
[1724019880148,22.6927,145.72,145.68,21.37260684]
[1724019881437,22.6927,145.72,145.68,20.0]
[1724019883645,22.6927,145.72,145.67,53.88]
[1724019883954,22.6927,145.72,145.68,20.0]
[1724019884257,22.6927,145.72,145.69,8.88]
[1724019884457,22.6927,145.72,145.71,8.88]
[1724019884746,6.351,145.72,145.71,8.88]
[1724019885943,6.351,145.72,145.68,20.0]
[1724019891132,6.351,145.72,145.65,8.88]
[1724019891350,6.351,145.72,145.66,65.0]
[1724019891849,6.351,145.72,145.66,45.0]
[1724019892246,15.8187,145.71,145.59,15.5578]
[1724019892453,15.8187,145.71,145.62,8.88]
[1724019893733,15.8187,145.71,145.63,20.0]
[1724019895531,15.8187,145.71,145.64,8.88]
[1724019896331,6.8634,145.7,145.63,20.0]
[1724019896526,22.6817,145.71,145.63,20.0]
[1724019896833,13.0829,145.7,145.57,13.98116516]
[1724019897035,21.9629,145.7,145.6,8.88]
[1724019898249,15.6753,145.69,145.61,20.0]
[1724019899734,15.6753,145.69,145.62,53.88]
[1724019900243,15.6753,145.69,145.64,8.88]
[1724019900664,15.6753,145.69,145.63,20.0]
[1724019900665,15.6753,145.69,145.66,8.88]
[1724019906067,15.6753,145.69,145.65,45.0]
[1724019906363,15.6753,145.69,145.64,53.88]
[1724019907547,15.6753,145.69,145.63,20.0]
[1724019907946,15.6753,145.69,145.62,20.0]
[1724019910945,15.2634,145.68,145.62,20.0]
[1724019911139,6.3834,145.68,145.61,8.88]
[1724019911346,6.3834,145.68,145.62,20.0]
[1724019914939,6.3834,145.68,145.63,8.88]
[1724019915957,15.6753,145.69,145.67,8.88]
[1724019917846,15.6753,145.69,145.63,8.88]
[1724019918044,15.6753,145.69,145.64,20.0]
[1724019918666,15.6753,145.69,145.63,8.88]
[1724019920468,6.1385,145.68,145.6,22.22]
[1724019920669,6.1385,145.68,145.61,45.0]
[1724019920972,6.1385,145.68,145.57,6.80842588]
[1724019921177,6.1385,145.68,145.56,15.7065]
[1724019921342,6.1385,145.68,145.57,22.22]
[1724019922546,6.1385,145.68,145.58,65.0]
[1724019925676,13.0029,145.68,145.58,65.0]
[1724019925970,13.0029,145.68,145.58,20.0]
[1724019925971,16.3379,145.67,145.58,20.0]
[1724019926144,16.3379,145.67,145.55,22.22]
[1724019926145,33.4122,145.66,145.55,22.22]
[1724019926357,33.4122,145.66,145.56,20.0]
[1724019926849,22.8848,145.63,145.52,22.22]
[1724019927046,29.7516,145.63,145.54,22.22]
[1724019927258,20.0,145.62,145.54,22.22]
[1724019929054,22.8848,145.63,145.56,22.22]
[1724019929273,22.8848,145.63,145.56,23.59357584]
[1724019929955,22.8848,145.63,145.56,22.22]
[1724019930770,22.8848,145.63,145.54,22.22]
[1724019930771,22.8848,145.63,145.58,22.22]
[1724019931672,22.8848,145.63,145.59,1.37343842]
[1724019931860,22.8848,145.63,145.58,22.22]
[1724019932279,22.8848,145.63,145.6,22.22]
[1724019934158,22.8848,145.63,145.58,22.22]
[1724019935890,22.8848,145.63,145.58,23.59347299]
[1724019936275,22.8848,145.63,145.58,22.22]
[1724019936479,22.8848,145.63,145.59,45.0]
[1724019938267,22.8848,145.63,145.58,22.22]
[1724019939857,22.8848,145.63,145.59,45.0]
[1724019940953,21.5578,145.66,145.6,22.22]
[1724019941153,21.5578,145.66,145.62,22.22]
[1724019945659,21.5578,145.66,145.64,22.22]
[1724019945903,6.3854,145.66,145.64,22.22]
[1724019946186,15.6509,145.69,145.65,21.37295536]
[1724019946371,15.6509,145.69,145.66,22.22]
[1724019946970,15.6509,145.69,145.66,23.5928103]
[1724019947864,15.6509,145.69,145.66,22.22]
[1724019948966,15.6509,145.69,145.65,45.0]
[1724019952378,15.6509,145.69,145.66,22.22]
[1724019952572,15.6509,145.69,145.67,1.3727372]
[1724019952875,21.3695,145.74,145.68,22.22]
[1724019953076,21.3695,145.74,145.7,22.22]
[1724019953297,21.3695,145.74,145.71,21.37233062]
[1724019953581,21.3695,145.74,145.71,20.0]
[1724019954092,22.5685,145.79,145.71,20.0]
[1724019954273,22.5685,145.79,145.73,22.22]
[1724019954477,22.5685,145.79,145.74,20.0]
[1724019955123,22.5685,145.79,145.75,68.59193855]
[1724019956204,22.5685,145.79,145.75,67.22]
[1724019956874,22.5685,145.79,145.76,1.37183341]
[1724019957600,22.5685,145.79,145.75,67.22]
[1724019957601,6.8564,145.85,145.75,67.22]
[1724019958003,22.4245,145.86,145.75,67.22]
[1724019958184,22.4245,145.82,145.74,20.0]
[1724019960097,22.4245,145.82,145.68,6.80842588]
[1724019960400,22.4245,145.82,145.7,22.22]
[1724019960401,6.8587,145.8,145.7,22.22]
[1724019960602,6.8587,145.8,145.71,20.0]
[1724019961496,6.8587,145.8,145.72,45.0]
[1724019964385,6.8593,145.79,145.71,20.0]
[1724019964708,21.7558,145.8,145.71,20.0]
[1724019965018,20.0,145.79,145.71,20.0]
[1724019965611,6.86,145.78,145.71,20.0]
[1724019966303,6.8601,145.77,145.7,22.22]
[1724019966603,6.8597,145.78,145.71,20.0]
[1724019966807,6.8597,145.78,145.69,20.0]
[1724019967105,6.8601,145.77,145.69,20.0]
[1724019967308,6.8601,145.77,145.68,22.22]
[1724019967688,20.0,145.79,145.69,45.0]
[1724019968021,20.0,145.79,145.7,22.22]
[1724019968604,6.8597,145.78,145.7,22.22]
[1724019968791,20.0,145.77,145.7,22.22]
[1724019971900,26.8601,145.77,145.7,22.22]
[1724019973488,21.9464,145.76,145.69,45.0]
[1724019973692,21.9464,145.76,145.68,22.22]
[1724019973995,28.807,145.76,145.69,20.0]
[1724019974520,6.8612,145.75,145.66,22.22]
[1724019974803,21.9464,145.76,145.62,31.42023081]
[1724019974804,6.8616,145.74,145.67,20.0]
[1724019975115,6.8616,145.74,145.65,20.0]
[1724019975979,6.5603,145.72,145.65,20.0]
[1724019976209,16.1918,145.71,145.65,20.0]
[1724019976407,23.0547,145.71,145.64,22.22]
[1724019976616,23.0547,145.71,145.64,8.88]
[1724019977308,16.1918,145.71,145.64,8.88]
[1724019978510,16.1918,145.71,145.63,22.21]
[1724019980618,23.0547,145.71,145.63,22.21]
[1724019983203,16.1918,145.71,145.64,45.0]
[1724019986301,16.1918,145.71,145.65,22.21]
[1724019986492,16.1918,145.71,145.66,66.37264824]
[1724019986693,16.1918,145.71,145.66,65.0]
[1724019987313,16.1918,145.71,145.67,23.58259342]
[1724019987521,16.1918,145.71,145.69,22.21]
[1724019988033,6.5603,145.72,145.69,22.21]
[1724019988189,6.5603,145.72,145.67,22.21]
[1724019991840,6.5603,145.72,145.68,45.0]
[1724019994234,6.3905,145.76,145.71,22.21]
[1724019994534,6.3905,145.76,145.73,22.21]
[1724019995580,6.3905,145.76,145.74,1.37205013]
[1724019995727,6.3905,145.76,145.74,20.0]
[1724019995957,15.089,145.78,145.75,67.21]
[1724019996120,15.089,145.78,145.76,1.37189225]
[1724019996629,15.089,145.78,145.75,22.21]
[1724019996929,15.089,145.78,145.73,22.21]
[1724019997235,15.089,145.78,145.74,65.0]
[1724020001114,15.089,145.78,145.75,22.21]
[1724020001425,15.089,145.78,145.76,45.0]
[1724020002425,15.089,145.78,145.77,8.87]
[1724020002629,15.089,145.78,145.75,8.87]
[1724020005615,15.089,145.78,145.67,37.99635898]
[1724020005822,21.949,145.78,145.71,8.87]
[1724020006024,15.089,145.78,145.71,8.87]
[1724020007940,21.9487,145.78,145.71,8.87]
[1724020008235,15.3403,145.75,145.66,8.87]
[1724020008542,22.4141,145.73,145.66,8.87]
[1724020008739,20.0,145.72,145.66,8.87]
[1724020010425,20.0,145.72,145.65,22.2]
[1724020010631,20.0,145.72,145.66,45.0]
[1724020012253,26.8626,145.72,145.65,22.2]
[1724020012628,12.9014,145.71,145.63,22.2]
[1724020012837,12.9014,145.71,145.64,20.0]
[1724020015048,6.0384,145.71,145.65,22.2]
[1724020015251,6.0384,145.71,145.66,45.0]
[1724020017957,6.0384,145.71,145.65,22.2]
[1724020018145,6.0384,145.71,145.66,45.0]
[1724020019843,6.0384,145.71,145.65,22.2]
[1724020021232,6.0384,145.71,145.64,20.0]
[1724020024252,6.0384,145.71,145.65,67.2]
[1724020024442,6.0384,145.71,145.67,22.2]
[1724020024837,6.0384,145.71,145.68,1.372626]
[1724020025657,6.0384,145.71,145.67,22.2]
[1724020025860,6.0384,145.71,145.65,67.2]
[1724020026239,6.0384,145.71,145.66,20.0]
[1724020028769,6.0384,145.71,145.65,67.2]
[1724020031959,12.9014,145.71,145.61,22.2]
[1724020032273,12.9014,145.71,145.59,22.2]
[1724020032274,22.6274,145.69,145.59,22.2]
[1724020033877,22.6274,145.69,145.6,65.0]
[1724020034055,22.6274,145.69,145.63,22.2]
[1724020034056,15.7634,145.69,145.63,22.2]
[1724020034255,15.7634,145.69,145.64,1.37301513]
[1724020036284,15.7634,145.69,145.64,45.0]
[1724020036449,15.7634,145.69,145.63,22.2]
[1724020037372,6.2605,145.65,145.56,7.1799003]
[1724020037575,6.2605,145.65,145.55,22.7188874]
[1724020037783,13.1263,145.65,145.55,22.7188874]
[1724020038078,6.2605,145.65,145.55,22.7188874]
[1724020038568,6.2605,145.65,145.55,0.5188874]
[1724020038775,6.2605,145.65,145.57,22.2]
[1724020038957,6.2605,145.65,145.59,22.2]
[1724020039153,6.2605,145.65,145.58,45.0]
[1724020039154,6.2605,145.65,145.61,22.2]
[1724020039364,6.2605,145.65,145.62,45.0]
[1724020040448,6.2605,145.65,145.61,22.2]
[1724020041592,6.2605,145.65,145.62,45.0]
[1724020043349,6.2605,145.65,145.55,16.1258874]
[1724020043350,6.2605,145.65,145.59,22.2]
[1724020043560,6.2605,145.65,145.6,45.0]
[1724020044574,6.2605,145.65,145.61,22.2]
[1724020044787,6.2272,145.68,145.63,22.2]
[1724020044968,6.2272,145.68,145.65,22.2]
[1724020050175,15.433,145.69,145.65,22.2]
[1724020050476,15.433,145.69,145.66,45.0]
[1724020051783,6.4285,145.72,145.67,23.57271202]
[1724020051960,6.4285,145.72,145.68,45.0]
[1724020054476,6.4285,145.72,145.67,22.2]
[1724020055577,6.4285,145.72,145.65,22.2]
[1724020055875,6.4285,145.72,145.66,65.0]
[1724020058758,13.291,145.72,145.63,22.2]
[1724020058962,20.0,145.71,145.63,22.2]
[1724020059676,13.291,145.72,145.63,22.2]
[1724020059980,20.0,145.71,145.63,22.2]
[1724020060174,20.0,145.71,145.64,45.0]
[1724020061172,16.3131,145.7,145.57,22.6165]
[1724020061375,6.225,145.69,145.61,22.2]
[1724020061766,6.225,145.69,145.62,20.0]
[1724020062561,6.225,145.69,145.63,45.0]
[1724020066282,22.8197,145.68,145.58,22.2]
[1724020067571,22.8197,145.68,145.59,65.0]
[1724020070296,6.339,145.67,145.59,20.0]
[1724020070482,13.2038,145.67,145.59,20.0]
[1724020070673,20.0,145.66,145.56,22.2]
[1724020071005,16.2268,145.64,145.57,20.0]
[1724020073094,6.1165,145.63,145.57,20.0]
[1724020073588,6.1165,145.63,145.55,0.5188874]
[1724020074071,6.1165,145.63,145.55,20.5188874]
[1724020078589,6.1165,145.63,145.56,8.89]
[1724020079977,6.1165,145.63,145.58,8.89]
[1724020080467,6.1165,145.63,145.6,8.89]
[1724020082570,6.1165,145.63,145.58,22.22]
[1724020082896,6.1165,145.63,145.59,45.0]
[1724020085773,6.1165,145.63,145.6,22.22]
[1724020086099,6.0598,145.67,145.62,22.22]
[1724020088187,6.0598,145.67,145.6,22.22]
[1724020089688,16.4605,145.66,145.59,45.0]
[1724020089900,16.4605,145.66,145.56,22.22]
[1724020091075,16.4605,145.66,145.57,65.0]
[1724020091289,16.4605,145.66,145.58,22.22]
[1724020091472,16.4605,145.66,145.59,45.0]
[1724020095703,16.4605,145.66,145.6,22.22]
[1724020095893,16.4605,145.66,145.6,23.59335308]
[1724020096090,16.4605,145.66,145.61,46.37317984]
[1724020096501,16.4605,145.66,145.61,45.0]
[1724020098207,16.4605,145.66,145.6,22.22]
[1724020099090,16.4605,145.66,145.61,46.37308778]
[1724020100002,16.4605,145.66,145.61,45.0]
[1724020100404,16.4605,145.66,145.6,22.22]
[1724020100711,16.4605,145.66,145.58,22.22]
[1724020100882,16.4605,145.66,145.59,65.0]
[1724020102354,16.4605,145.66,145.6,22.22]
[1724020102511,16.4605,145.66,145.61,45.0]
[1724020104514,16.4605,145.66,145.62,8.89]
[1724020109010,16.4605,145.66,145.63,1.37314465]
[1724020112506,6.0598,145.67,145.64,10.26302022]
[1724020112689,6.0598,145.67,145.65,46.37287495]
[1724020113013,6.0598,145.67,145.65,45.0]
[1724020113910,15.759,145.69,145.66,1.37286801]
[1724020114404,15.759,145.69,145.65,45.0]
[1724020115717,15.759,145.69,145.63,8.89]
[1724020115905,15.759,145.69,145.64,20.0]
[1724020118412,15.759,145.69,145.57,15.2171]
[1724020118597,6.3371,145.68,145.61,8.89]
[1724020120227,6.3371,145.68,145.57,15.2171]
[1724020120518,6.3371,145.68,145.6,8.89]
[1724020123024,6.3371,145.68,145.55,6.6499874]
[1724020123202,15.7071,145.67,145.6,8.89]
[1724020124737,15.7071,145.67,145.55,0.5188874]
[1724020124915,15.7071,145.67,145.57,8.89]
[1724020124916,16.5717,145.65,145.57,8.89]
[1724020127626,16.5717,145.65,145.55,0.5188874]
[1724020127933,6.0366,145.64,145.56,8.89]
[1724020129597,6.0366,145.64,145.58,8.89]
[1724020133032,15.7426,145.63,145.55,0.5188874]
[1724020133206,26.1858,145.62,145.55,0.5188874]
[1724020133717,16.0393,145.61,145.55,0.5188874]
[1724020135737,22.907,145.61,145.55,0.5188874]
[1724020135923,6.0085,145.6,145.55,0.5188874]
[1724020136712,16.0393,145.59,145.55,0.5188874]
[1724020151153,16.0393,145.59,145.56,8.89]
[1724020151347,6.0085,145.6,145.56,8.89]
[1724020151645,6.0085,145.6,145.55,0.5188874]
[1724020151646,6.0085,145.6,145.58,8.89]
[1724020152550,15.1082,145.62,145.59,1.37364332]
[1724020153355,6.5066,145.64,145.6,8.89]
[1724020153543,6.5066,145.64,145.61,1.37334462]
[1724020153728,6.5066,145.64,145.6,8.89]
[1724020158452,6.5066,145.64,145.61,1.37334406]
[1724020159354,6.5066,145.64,145.6,8.89]
[1724020159534,6.5066,145.64,145.61,1.3733548]
[1724020160737,6.5066,145.64,145.6,8.89]
[1724020163256,6.5066,145.64,145.59,8.89]
[1724020172870,6.5066,145.64,145.55,0.5188874]
[1724020173064,6.5066,145.64,145.59,8.89]
[1724020175986,6.5066,145.64,145.55,0.5188874]
[1724020176143,6.5066,145.64,145.59,8.89]
[1724020181348,6.5066,145.64,145.55,20.5188874]
[1724020181554,6.5066,145.64,145.58,8.89]
[1724020185877,6.5066,145.64,145.6,8.89]
[1724020189155,6.5066,145.64,145.55,20.5188874]
[1724020189383,6.5066,145.64,145.56,45.0]
[1724020189582,6.5066,145.64,145.55,9.4088874]
[1724020190086,17.1602,145.69,145.55,9.4088874]
[1724020190087,6.5023,145.62,145.55,0.5188874]
[1724020192682,13.3696,145.62,145.55,0.5188874]
[1724020192983,15.0341,145.61,145.55,0.5188874]
[1724020197690,15.0341,145.61,145.56,8.89]
[1724020201281,15.0341,145.61,145.58,8.89]
[1724020201694,15.0341,145.61,145.56,8.89]
[1724020204312,15.0341,145.61,145.58,8.89]
[1724020204469,6.5023,145.62,145.58,8.89]
[1724020205285,6.5023,145.62,145.6,8.89]
[1724020206288,6.5023,145.62,145.57,8.89]
[1724020214602,6.5023,145.62,145.59,8.89]
[1724020218916,6.5023,145.62,145.57,8.89]
[1724020219692,6.5023,145.62,145.55,0.5188874]
[1724020219987,6.5023,145.62,145.55,9.4088874]
[1724020220185,6.5023,145.62,145.55,0.5188874]
[1724020220390,15.3787,145.61,145.55,0.5188874]
[1724020220699,73.3624,145.67,145.55,0.5188874]
[1724020220700,8.89,145.58,145.55,0.5188874]
[1724020220904,24.1155,145.56,145.43,7.18970553]
[1724020221134,12.8993,145.55,145.46,8.89]
[1724020221305,34.9185,145.55,145.46,8.89]
[1724020221489,34.9185,145.55,145.41,18.60149808]
[1724020221692,34.9185,145.55,145.46,8.89]
[1724020221693,41.7894,145.55,145.46,8.89]
[1724020223017,67.7496,145.54,145.44,8.89]
[1724020223220,6.0614,145.52,145.44,8.89]
[1724020224618,12.9333,145.52,145.41,0.8666386]
[1724020224798,15.3846,145.51,145.43,8.89]
[1724020225390,31.147,145.51,145.42,8.89]
[1724020225620,20.0,145.5,145.42,8.89]
[1724020229293,15.3846,145.51,145.44,8.89]
[1724020229492,15.3846,145.51,145.46,8.89]
[1724020231730,15.3846,145.51,145.48,8.89]
[1724020234116,15.3846,145.51,145.46,8.89]
[1724020238531,15.3846,145.51,145.48,8.89]
[1724020238735,6.0614,145.52,145.5,8.89]
[1724020240711,6.0614,145.52,145.48,8.89]
[1724020241221,6.0614,145.52,145.43,15.1253]
[1724020241418,6.0614,145.52,145.46,8.89]
[1724020242806,16.5338,145.51,145.46,8.89]
[1724020243028,16.5338,145.51,145.43,8.89]
[1724020245911,6.6367,145.5,145.42,8.89]
[1724020247134,13.5096,145.5,145.41,0.8666386]
[1724020247315,6.6367,145.5,145.41,9.7566386]
[1724020247523,13.5097,145.5,145.41,9.7566386]
[1724020248414,15.4675,145.49,145.41,9.7566386]
[1724020250233,15.4675,145.49,145.45,8.89]
[1724020250433,15.4675,145.49,145.41,0.8666386]
[1724020250731,15.4675,145.49,145.43,8.89]
[1724020251411,6.4004,145.48,145.41,0.8666386]
[1724020251727,6.4004,145.48,145.42,8.89]
[1724020253813,6.4004,145.48,145.41,0.8666386]
[1724020254331,6.4004,145.48,145.41,9.7566386]
[1724020254926,6.4004,145.48,145.43,8.89]
[1724020256335,6.4004,145.48,145.41,0.8666386]
[1724020256336,6.4004,145.48,145.45,8.89]
[1724020257014,6.4004,145.48,145.47,8.89]
[1724020257220,21.9447,145.53,145.47,8.89]
[1724020257524,21.9447,145.53,145.52,8.89]
[1724020258444,21.9447,145.53,145.49,22.25]
[1724020259013,21.9447,145.53,145.41,16.1208386]
[1724020259234,21.9447,145.53,145.47,22.25]
[1724020263546,21.9447,145.53,145.49,22.25]
[1724020264741,21.9447,145.53,145.47,22.25]
[1724020268039,21.9447,145.53,145.49,22.25]
[1724020268416,21.9447,145.53,145.51,22.25]
[1724020268644,22.5745,145.57,145.51,22.25]
[1724020270350,22.5745,145.57,145.53,22.25]
[1724020273846,22.5745,145.57,145.55,22.25]
[1724020274847,6.0846,145.57,145.55,22.25]
[1724020275527,16.0489,145.6,145.55,22.25]
[1724020275926,16.0489,145.6,145.57,22.25]
[1724020278432,16.0489,145.6,145.55,8.89]
[1724020279551,16.0489,145.6,145.51,16.5941]
[1724020279752,16.0489,145.6,145.54,8.89]
[1724020280128,22.917,145.6,145.47,15.0365]
[1724020280355,6.3124,145.59,145.51,8.89]
[1724020280530,6.3124,145.59,145.5,22.25]
[1724020280724,20.0,145.58,145.5,22.25]
[1724020280933,23.3324,145.57,145.43,21.6336]
[1724020281132,6.3834,145.56,145.47,22.25]
[1724020282355,6.3834,145.56,145.49,22.25]
[1724020282559,6.3834,145.56,145.51,22.25]
[1724020283941,6.3834,145.56,145.49,22.25]
[1724020290262,6.3834,145.56,145.51,22.25]
[1724020291953,6.3834,145.56,145.53,22.25]
[1724020292349,16.4629,145.57,145.55,22.25]
[1724020295553,16.4629,145.57,145.53,22.25]
[1724020299284,16.4629,145.57,145.49,45.0]
[1724020299452,16.4629,145.57,145.52,22.25]
[1724020304782,16.4629,145.57,145.49,45.0]
[1724020304957,16.4629,145.57,145.52,22.25]
[1724020306281,16.4629,145.57,145.54,22.25]
[1724020309761,6.5922,145.6,145.56,22.25]
[1724020309962,6.5922,145.6,145.51,15.5825]
[1724020310179,6.5922,145.6,145.58,22.25]
[1724020310365,15.3065,145.61,145.58,22.25]
[1724020317076,15.3065,145.61,145.56,22.25]
[1724020319374,15.3065,145.61,145.54,22.25]
[1724020319561,15.3065,145.61,145.55,20.0]
[1724020320778,15.3065,145.61,145.56,22.25]
[1724020320981,15.3065,145.61,145.58,22.25]
[1724020324477,15.3065,145.61,145.58,8.89]
[1724020324921,15.3065,145.61,145.6,8.89]
[1724020325782,6.5054,145.64,145.6,8.89]
[1724020325982,6.5054,145.64,145.63,8.89]
[1724020329089,6.5909,145.68,145.63,8.89]
[1724020329289,6.5909,145.68,145.6,35.56]
[1724020329290,6.5909,145.68,145.65,8.89]
[1724020330484,6.5909,145.68,145.62,22.21]
[1724020335507,6.5909,145.68,145.64,22.21]
[1724020335807,15.7659,145.69,145.66,22.21]
[1724020337192,15.7659,145.69,145.64,22.21]
[1724020339209,15.7659,145.69,145.65,1.37295418]
[1724020339416,6.2446,145.71,145.66,22.21]
[1724020339585,6.2446,145.71,145.68,22.21]
[1724020339915,15.3633,145.73,145.7,22.21]
[1724020340213,6.6333,145.75,145.7,22.21]
[1724020342415,6.6333,145.75,145.67,22.21]
[1724020342589,13.4944,145.75,145.65,22.21]
[1724020343099,6.6333,145.75,145.67,22.21]
[1724020344894,13.4944,145.75,145.67,22.21]
[1724020345812,6.6333,145.75,145.67,22.21]
[1724020346503,6.6333,145.75,145.68,45.0]
[1724020346705,6.6333,145.75,145.69,22.21]
[1724020348718,6.6333,145.75,145.71,22.21]
[1724020351995,16.283,145.76,145.71,22.21]
[1724020352497,16.283,145.76,145.73,8.87]
[1724020354119,6.3998,145.78,145.73,8.87]
[1724020354517,6.3998,145.78,145.75,8.87]
[1724020356315,15.5834,145.79,145.77,8.87]
[1724020357527,15.5834,145.79,145.76,8.87]
[1724020359205,15.5834,145.79,145.67,50.5655]
[1724020359511,6.4231,145.78,145.71,8.87]
[1724020359720,6.4231,145.78,145.72,20.0]
[1724020360529,6.4231,145.78,145.73,8.87]
[1724020361332,6.4231,145.78,145.72,28.87]
[1724020362106,6.4231,145.78,145.74,8.87]
[1724020362511,6.4231,145.78,145.76,8.87]
[1724020363115,15.5834,145.79,145.76,8.87]
[1724020371933,15.5834,145.79,145.72,20.0]
[1724020372138,15.5834,145.79,145.67,50.5655]
[1724020372139,15.5834,145.79,145.73,8.87]
[1724020372320,22.4427,145.79,145.71,8.87]
[1724020372638,15.5834,145.79,145.72,20.0]
[1724020374629,15.5834,145.79,145.73,8.87]
[1724020375817,15.5834,145.79,145.72,8.87]
[1724020376051,6.0692,145.78,145.69,8.87]
[1724020376234,26.8602,145.77,145.69,8.87]
[1724020376417,6.0692,145.74,145.64,16.4583]
[1724020376749,6.0692,145.74,145.67,8.87]
[1724020378419,6.0692,145.74,145.66,22.2]
[1724020378620,6.0692,145.74,145.67,65.0]
[1724020379423,12.9309,145.74,145.67,20.0]
[1724020380327,6.0692,145.74,145.67,20.0]
[1724020381519,6.0692,145.74,145.68,22.2]
[1724020381722,6.0692,145.74,145.7,22.2]
[1724020382321,6.0692,145.74,145.69,65.0]
[1724020382543,6.0692,145.74,145.67,22.2]
[1724020382751,6.0692,145.74,145.68,20.0]
[1724020383837,6.0692,145.74,145.69,45.0]
[1724020386259,6.0692,145.74,145.7,1.3724445]
[1724020386443,6.0692,145.74,145.69,45.0]
[1724020386741,6.0692,145.74,145.7,1.37244357]
[1724020387956,6.0692,145.74,145.71,1.37241724]
[1724020388625,6.0692,145.74,145.69,45.0]
[1724020391942,6.0692,145.74,145.69,46.37253281]
[1724020392968,6.0692,145.74,145.7,20.0]
[1724020393152,6.0692,145.74,145.71,45.0]
[1724020395031,6.0692,145.74,145.7,20.0]
[1724020395235,6.0692,145.74,145.68,22.2]
[1724020395441,12.9308,145.74,145.63,16.0159]
[1724020395642,12.9308,145.74,145.65,22.2]
[1724020396228,6.0692,145.74,145.65,22.2]
[1724020396730,6.0692,145.74,145.66,45.0]
[1724020397262,6.0692,145.74,145.67,20.0]
[1724020400250,16.1899,145.73,145.67,20.0]
[1724020400431,23.0522,145.73,145.67,20.0]
[1724020400631,14.9492,145.74,145.6,42.68575976]
[1724020400632,6.5077,145.71,145.6,26.64]
[1724020400841,6.5077,145.71,145.61,8.88]
[1724020400842,31.9334,145.7,145.61,8.88]